[Event "Live Chess"]
[Site "Chess.com"]
[Date "2024.06.02"]
[Round "-"]
[White "Ziipyyy"]
[Black "MagnersCarlsberg2870"]
[Result "0-1"]
[WhiteElo "1288"]
[BlackElo "1781"]
[TimeControl "300"]
[EndTime "4:00:06 PDT"]
[Termination "MagnersCarlsberg2870 won by resignation"]

1. e4 {[%clk 0:04:58.6]} 1... e5 {[%clk 0:04:58.9]} 2. Nc3 {[%clk 0:04:57.6]}
2... Nc6 {[%clk 0:04:57.4]} 3. Bc4 {[%clk 0:04:56.3]} 3... Nf6 {[%clk
0:04:55.9]} 4. f4 {[%clk 0:04:53.9]} 4... Bc5 {[%clk 0:04:48.8]} 5. Nf3 {[%clk
0:04:39.5]} 5... d6 {[%clk 0:04:45.8]} 6. f5 {[%clk 0:04:33.7]} 6... Na5 {[%clk
0:04:39.9]} 7. Bb5+ {[%clk 0:04:04.9]} 7... c6 {[%clk 0:04:37.6]} 8. Ba4 {[%clk
0:04:03.1]} 8... b5 {[%clk 0:04:35.9]} 9. Bb3 {[%clk 0:03:50.7]} 9... Nxb3
{[%clk 0:04:34.7]} 10. axb3 {[%clk 0:03:50.6]} 10... Qb6 {[%clk 0:04:27.8]} 11.
Qe2 {[%clk 0:03:39.6]} 11... g6 {[%clk 0:04:24.8]} 12. d3 {[%clk 0:03:35.4]}
12... gxf5 {[%clk 0:04:14.3]} 13. exf5 {[%clk 0:03:31.6]} 13... Bxf5 {[%clk
0:04:13.1]} 14. Bg5 {[%clk 0:03:29.3]} 14... Ng4 {[%clk 0:04:08.8]} 15. Ne4
{[%clk 0:03:16.6]} 15... Bxe4 {[%clk 0:04:03.2]} 16. Qxe4 {[%clk 0:03:10.3]}
16... Nf2 {[%clk 0:04:00.8]} 17. Qf5 {[%clk 0:02:43.1]} 17... Nxh1 {[%clk
0:03:56.3]} 18. Bf6 {[%clk 0:02:32.9]} 18... Rg8 {[%clk 0:03:51.3]} 19. Ng5
{[%clk 0:02:30.5]} 19... Bf2+ {[%clk 0:03:45.7]} 20. Kd2 {[%clk 0:02:22.4]}
20... Qe3+ {[%clk 0:03:43.5]} 21. Kc3 {[%clk 0:02:21]} 21... Qd4+ {[%clk
0:03:41.4]} 22. Kd2 {[%clk 0:02:19.2]} 22... b4 {[%clk 0:03:32.2]} 23. Rxh1
{[%clk 0:01:47.3]} 23... Be3+ {[%clk 0:03:23.8]} 24. Ke2 {[%clk 0:01:42.8]}
24... Bxg5 {[%clk 0:03:17.2]} 25. Bxg5 {[%clk 0:01:37.1]} 25... h6 {[%clk
0:03:16.2]} 26. Rf1 {[%clk 0:01:27.8]} 26... Rg7 {[%clk 0:02:49.4]} 27. Bxh6
{[%clk 0:01:23.8]} 27... Rxg2+ {[%clk 0:02:47.4]} 28. Kd1 {[%clk 0:01:16.6]}
28... Qg4+ {[%clk 0:02:39.4]} 29. Qxg4 {[%clk 0:01:13.2]} 29... Rxg4 {[%clk
0:02:38]} 30. Bd2 {[%clk 0:01:12.2]} 30... Rg2 {[%clk 0:02:31.4]} 31. Bxb4
{[%clk 0:01:10.1]} 31... c5 {[%clk 0:02:30.1]} 32. Bc3 {[%clk 0:01:02]} 32...
Rxh2 {[%clk 0:02:28.5]} 33. Rf6 {[%clk 0:01:00.1]} 33... Ke7 {[%clk 0:02:26.5]}
34. Rf1 {[%clk 0:00:57.1]} 34... Rg8 {[%clk 0:02:24.6]} 35. Bd2 {[%clk
0:00:55.1]} 35... Rgg2 {[%clk 0:02:22.5]} 36. Be1 {[%clk 0:00:48.1]} 36... Rxc2
{[%clk 0:02:20.5]} 37. Bh4+ {[%clk 0:00:30]} 37... Kf8 {[%clk 0:02:18.1]} 38.
Be1 {[%clk 0:00:23.5]} 38... Rxb2 {[%clk 0:02:16.2]} 39. Bd2 {[%clk 0:00:16]}
39... Rbxd2+ {[%clk 0:02:12.9]} 40. Kc1 {[%clk 0:00:13]} 40... Rc2+ {[%clk
0:02:09.8]} 0-1

[Event "Live Chess"]
[Site "Chess.com"]
[Date "2024.06.02"]
[Round "-"]
[White "WeakOldFinished"]
[Black "elis06"]
[Result "0-1"]
[WhiteElo "2178"]
[BlackElo "2349"]
[TimeControl "300"]
[EndTime "4:00:15 PDT"]
[Termination "elis06 won by resignation"]

1. d4 {[%clk 0:04:55.7]} 1... d5 {[%clk 0:04:58.4]} 2. e4 {[%clk 0:04:54.2]}
2... dxe4 {[%clk 0:04:56.7]} 3. Nc3 {[%clk 0:04:53.1]} 3... Nf6 {[%clk
0:04:54.5]} 4. f3 {[%clk 0:04:49.1]} 4... exf3 {[%clk 0:04:53.5]} 5. Nxf3 {[%clk
0:04:49]} 5... c6 {[%clk 0:04:52.9]} 6. Bc4 {[%clk 0:04:47.3]} 6... Bf5 {[%clk
0:04:42.7]} 7. O-O {[%clk 0:04:45.7]} 7... e6 {[%clk 0:04:33.5]} 8. Ne5 {[%clk
0:04:43.5]} 8... Bg6 {[%clk 0:04:26.5]} 9. Ne2 {[%clk 0:04:40.5]} 9... Nbd7
{[%clk 0:04:20.8]} 10. Bf4 {[%clk 0:04:33.6]} 10... Be7 {[%clk 0:04:17.8]} 11.
c3 {[%clk 0:04:29.9]} 11... Nxe5 {[%clk 0:04:14.8]} 12. Bxe5 {[%clk 0:04:28.6]}
12... O-O {[%clk 0:04:14]} 13. Nf4 {[%clk 0:04:26.6]} 13... Nd5 {[%clk
0:04:01.8]} 14. Nxg6 {[%clk 0:04:19]} 14... hxg6 {[%clk 0:03:58.5]} 15. Rf3
{[%clk 0:04:17.1]} 15... Bf6 {[%clk 0:03:48.1]} 16. Qe2 {[%clk 0:04:10.8]} 16...
Re8 {[%clk 0:03:16.2]} 17. Raf1 {[%clk 0:04:09.2]} 17... Bxe5 {[%clk 0:03:06.4]}
18. Qxe5 {[%clk 0:04:07.4]} 18... f6 {[%clk 0:03:03.3]} 19. Qe2 {[%clk 0:03:57]}
19... Qd6 {[%clk 0:02:56.5]} 20. Qd2 {[%clk 0:03:42.8]} 20... Kf7 {[%clk
0:02:51.1]} 21. Qg5 {[%clk 0:03:33]} 21... Rh8 {[%clk 0:02:41.2]} 22. Bxd5
{[%clk 0:03:28.9]} 22... exd5 {[%clk 0:02:35.3]} 23. Qg3 {[%clk 0:03:22.8]}
23... Qxg3 {[%clk 0:02:33.9]} 24. Rxg3 {[%clk 0:03:22.7]} 24... Rae8 {[%clk
0:02:31.3]} 25. Kf2 {[%clk 0:03:21.6]} 25... Re4 {[%clk 0:02:30]} 26. h3 {[%clk
0:03:17.9]} 26... Rhe8 {[%clk 0:02:29.1]} 27. Kg1 {[%clk 0:03:15.7]} 27... Re2
{[%clk 0:02:28.2]} 28. Rf2 {[%clk 0:03:15.2]} 28... Re1+ {[%clk 0:02:26]} 29.
Kh2 {[%clk 0:03:14.3]} 29... R8e2 {[%clk 0:02:25.3]} 30. Rgf3 {[%clk 0:03:13.2]}
30... Rxf2 {[%clk 0:02:22.9]} 31. Rxf2 {[%clk 0:03:11.7]} 31... Ra1 {[%clk
0:02:21.8]} 32. a3 {[%clk 0:03:10.6]} 32... Re1 {[%clk 0:02:21.2]} 33. Kg3
{[%clk 0:03:08.9]} 33... g5 {[%clk 0:02:20.7]} 34. Rd2 {[%clk 0:03:07.7]} 34...
Re3+ {[%clk 0:02:19]} 35. Kf2 {[%clk 0:03:06.4]} 35... Re4 {[%clk 0:02:18.6]}
36. Rd3 {[%clk 0:03:01.1]} 36... f5 {[%clk 0:02:18]} 37. a4 {[%clk 0:02:55.3]}
37... Kf6 {[%clk 0:02:17.4]} 38. b4 {[%clk 0:02:54.3]} 38... g6 {[%clk
0:02:16.5]} 39. b5 {[%clk 0:02:52.9]} 39... Re7 {[%clk 0:02:12.2]} 40. Rd2
{[%clk 0:02:46.8]} 40... Rc7 {[%clk 0:02:09.6]} 41. b6 {[%clk 0:02:40.1]} 41...
axb6 {[%clk 0:02:08.2]} 42. Rb2 {[%clk 0:02:40]} 42... b5 {[%clk 0:02:06.2]} 43.
axb5 {[%clk 0:02:39.9]} 43... cxb5 {[%clk 0:02:05.7]} 44. Rxb5 {[%clk 0:02:39]}
44... Rxc3 {[%clk 0:02:05]} 45. Rxb7 {[%clk 0:02:33.8]} 45... Rc2+ {[%clk
0:02:04.2]} 46. Kf1 {[%clk 0:02:32.1]} 46... Rd2 {[%clk 0:02:02.8]} 47. Rb6+
{[%clk 0:02:30.9]} 47... Kf7 {[%clk 0:02:01.8]} 48. Rb5 {[%clk 0:02:29.1]} 48...
Rxd4 {[%clk 0:02:00.7]} 0-1

[Event "Live Chess"]
[Site "Chess.com"]
[Date "2024.06.02"]
[Round "-"]
[White "ZatixMajor"]
[Black "CarmelJane"]
[Result "0-1"]
[WhiteElo "2028"]
[BlackElo "2065"]
[TimeControl "300"]
[EndTime "4:00:27 PDT"]
[Termination "CarmelJane won by resignation"]

1. c4 {[%clk 0:04:58.1]} 1... e5 {[%clk 0:04:57.9]} 2. g3 {[%clk 0:04:57]} 2...
Nf6 {[%clk 0:04:55.5]} 3. Bg2 {[%clk 0:04:56.3]} 3... c6 {[%clk 0:04:54.9]} 4.
d4 {[%clk 0:04:55.2]} 4... e4 {[%clk 0:04:52.7]} 5. Nc3 {[%clk 0:04:54.1]} 5...
d5 {[%clk 0:04:52]} 6. cxd5 {[%clk 0:04:54]} 6... cxd5 {[%clk 0:04:49.8]} 7. Bg5
{[%clk 0:04:53.6]} 7... h6 {[%clk 0:04:45.6]} 8. Bxf6 {[%clk 0:04:52.6]} 8...
gxf6 {[%clk 0:04:41.3]} 9. Nh3 {[%clk 0:04:51.5]} 9... Nc6 {[%clk 0:04:28.6]}
10. Nf4 {[%clk 0:04:49.7]} 10... Be6 {[%clk 0:04:25.2]} 11. e3 {[%clk
0:04:48.8]} 11... Bd6 {[%clk 0:04:22.8]} 12. Nxe6 {[%clk 0:04:47.4]} 12... fxe6
{[%clk 0:04:21.5]} 13. Qh5+ {[%clk 0:04:47]} 13... Ke7 {[%clk 0:04:18.8]} 14.
Bh3 {[%clk 0:04:35.2]} 14... Nb4 {[%clk 0:04:11.9]} 15. O-O {[%clk 0:04:31]}
15... Nd3 {[%clk 0:04:05.6]} 16. Bxe6 {[%clk 0:04:14.2]} 16... Kxe6 {[%clk
0:03:47.1]} 17. Qxd5+ {[%clk 0:04:12.6]} 17... Kd7 {[%clk 0:03:46.6]} 18. Qxb7+
{[%clk 0:03:57]} 18... Qc7 {[%clk 0:03:42.9]} 19. Qxe4 {[%clk 0:03:56.5]} 19...
Nxb2 {[%clk 0:03:39.3]} 20. Qf5+ {[%clk 0:03:43.4]} 20... Ke8 {[%clk 0:03:31.2]}
21. Qxf6 {[%clk 0:03:36.6]} 21... Rf8 {[%clk 0:03:26.8]} 22. Qe6+ {[%clk
0:03:35]} 22... Qe7 {[%clk 0:03:25.4]} 23. Qd5 {[%clk 0:03:32.3]} 23... Rb8
{[%clk 0:03:16.5]} 24. Ne4 {[%clk 0:03:25.9]} 24... Bc7 {[%clk 0:03:00.9]} 25.
Rac1 {[%clk 0:03:04.5]} 25... Nd3 {[%clk 0:02:53.7]} 26. Rc3 {[%clk 0:02:57.3]}
26... Nb4 {[%clk 0:02:50.9]} 27. Rfc1 {[%clk 0:02:53.3]} 27... Nxd5 {[%clk
0:02:48.6]} 0-1

[Event "Live Chess"]
[Site "Chess.com"]
[Date "2024.06.02"]
[Round "-"]
[White "GwaryTek"]
[Black "vincents82"]
[Result "1-0"]
[WhiteElo "1842"]
[BlackElo "1989"]
[TimeControl "300"]
[EndTime "4:00:32 PDT"]
[Termination "GwaryTek won by resignation"]

1. d4 {[%clk 0:04:50.4]} 1... d5 {[%clk 0:04:58.9]} 2. c4 {[%clk 0:04:49.1]}
2... c6 {[%clk 0:04:58.1]} 3. Nc3 {[%clk 0:04:48.3]} 3... Nf6 {[%clk 0:04:57]}
4. Nf3 {[%clk 0:04:47.9]} 4... dxc4 {[%clk 0:04:55.9]} 5. e4 {[%clk 0:04:46.4]}
5... b5 {[%clk 0:04:54.9]} 6. e5 {[%clk 0:04:45.3]} 6... Nd5 {[%clk 0:04:53.6]}
7. a4 {[%clk 0:04:44.7]} 7... e6 {[%clk 0:04:52]} 8. axb5 {[%clk 0:04:39.3]}
8... Nxc3 {[%clk 0:04:51.1]} 9. bxc3 {[%clk 0:04:38.2]} 9... cxb5 {[%clk
0:04:50.8]} 10. Ng5 {[%clk 0:04:37.2]} 10... Be7 {[%clk 0:04:49.3]} 11. Nxf7
{[%clk 0:04:32]} 11... Kxf7 {[%clk 0:04:47.2]} 12. Qf3+ {[%clk 0:04:31.1]} 12...
Ke8 {[%clk 0:04:45.6]} 13. Qxa8 {[%clk 0:04:27.4]} 13... Nd7 {[%clk 0:04:45]}
14. Qxa7 {[%clk 0:04:04.2]} 14... Rf8 {[%clk 0:04:43.1]} 15. Be2 {[%clk
0:04:02]} 15... Nb6 {[%clk 0:04:39.6]} 16. O-O {[%clk 0:03:58]} 16... Nd5 {[%clk
0:04:38.2]} 17. Bd2 {[%clk 0:03:52.1]} 17... Kf7 {[%clk 0:04:35.4]} 18. Qa5
{[%clk 0:03:44.2]} 18... Bd7 {[%clk 0:04:33.8]} 19. Qxd8 {[%clk 0:03:41.8]}
19... Rxd8 {[%clk 0:04:33]} 20. Ra7 {[%clk 0:03:36.6]} 20... Ke8 {[%clk
0:04:31.9]} 21. Rb1 {[%clk 0:03:34.1]} 21... Rc8 {[%clk 0:04:28]} 22. Bf3 {[%clk
0:03:27.2]} 22... b4 {[%clk 0:04:27.4]} 23. Bxd5 {[%clk 0:02:55.9]} 23... bxc3
{[%clk 0:04:25.1]} 24. Bxc3 {[%clk 0:02:44.1]} 24... exd5 {[%clk 0:04:23.8]} 25.
Rbb7 {[%clk 0:02:39.9]} 25... Rd8 {[%clk 0:04:22.3]} 26. f4 {[%clk 0:02:35.8]}
26... g5 {[%clk 0:04:15.5]} 27. f5 {[%clk 0:02:32.1]} 1-0

[Event "Live Chess"]
[Site "Chess.com"]
[Date "2024.06.02"]
[Round "-"]
[White "f4nomore"]
[Black "Mikhail_Golubev"]
[Result "0-1"]
[WhiteElo "1268"]
[BlackElo "2515"]
[TimeControl "300"]
[EndTime "4:00:35 PDT"]
[Termination "Mikhail_Golubev won by checkmate"]

1. b3 {[%clk 0:04:55.4]} 1... d6 {[%clk 0:04:58.7]} 2. Bb2 {[%clk 0:04:54.4]}
2... Nd7 {[%clk 0:04:58.6]} 3. e3 {[%clk 0:04:53.2]} 3... e5 {[%clk 0:04:57.6]}
4. Nf3 {[%clk 0:04:50.8]} 4... Ngf6 {[%clk 0:04:56.4]} 5. Be2 {[%clk 0:04:48.5]}
5... Be7 {[%clk 0:04:54.1]} 6. O-O {[%clk 0:04:35]} 6... e4 {[%clk 0:04:43]} 7.
Nd4 {[%clk 0:04:33.3]} 7... Ne5 {[%clk 0:04:42.1]} 8. d3 {[%clk 0:04:29.6]} 8...
exd3 {[%clk 0:04:15.9]} 9. Bxd3 {[%clk 0:04:26.2]} 9... O-O {[%clk 0:04:12.8]}
10. Nd2 {[%clk 0:03:18.9]} 10... Nxd3 {[%clk 0:03:53.4]} 11. cxd3 {[%clk
0:03:14.3]} 11... c5 {[%clk 0:03:42.9]} 12. N4f3 {[%clk 0:03:12.1]} 12... b5
{[%clk 0:03:35]} 13. e4 {[%clk 0:03:10.7]} 13... Bb7 {[%clk 0:03:33.2]} 14. Rc1
{[%clk 0:03:07.2]} 14... a5 {[%clk 0:03:21]} 15. e5 {[%clk 0:03:05.5]} 15...
dxe5 {[%clk 0:03:18.5]} 16. Nxe5 {[%clk 0:03:03.2]} 16... a4 {[%clk 0:03:08.1]}
17. bxa4 {[%clk 0:02:56.7]} 17... Rxa4 {[%clk 0:03:04.2]} 18. a3 {[%clk
0:02:45.1]} 18... Qd5 {[%clk 0:02:41.7]} 19. Ndf3 {[%clk 0:02:38.3]} 19... Bd6
{[%clk 0:02:24.2]} 20. Re1 {[%clk 0:02:33.6]} 20... Re8 {[%clk 0:01:45.1]} 21.
Qc2 {[%clk 0:02:06.1]} 21... h6 {[%clk 0:01:34.7]} 22. Qd1 {[%clk 0:01:45.7]}
22... Re6 {[%clk 0:01:32.5]} 23. h3 {[%clk 0:01:35.2]} 23... Ra8 {[%clk
0:01:26.3]} 24. d4 {[%clk 0:01:18.2]} 24... c4 {[%clk 0:01:20.4]} 25. Rc3 {[%clk
0:01:08.6]} 25... b4 {[%clk 0:01:10.2]} 26. Rxc4 {[%clk 0:00:53.8]} 26... bxa3
{[%clk 0:01:08.4]} 27. Ba1 {[%clk 0:00:51.7]} 27... Bxe5 {[%clk 0:01:02]} 28.
Nxe5 {[%clk 0:00:45.5]} 28... Qxg2# {[%clk 0:00:59.5]} 0-1

[Event "Live Chess"]
[Site "Chess.com"]
[Date "2024.06.02"]
[Round "-"]
[White "dmitro74"]
[Black "stevochess11"]
[Result "1-0"]
[WhiteElo "1740"]
[BlackElo "1705"]
[TimeControl "300"]
[EndTime "4:01:01 PDT"]
[Termination "dmitro74 won by checkmate"]

1. d4 {[%clk 0:04:57.8]} 1... Nf6 {[%clk 0:04:58.8]} 2. c4 {[%clk 0:04:56.6]}
2... c5 {[%clk 0:04:57.4]} 3. d5 {[%clk 0:04:55.3]} 3... b5 {[%clk 0:04:55.7]}
4. cxb5 {[%clk 0:04:51.7]} 4... a6 {[%clk 0:04:54.5]} 5. bxa6 {[%clk 0:04:50.2]}
5... g6 {[%clk 0:04:53.4]} 6. Nc3 {[%clk 0:04:48]} 6... Bxa6 {[%clk 0:04:52.1]}
7. e4 {[%clk 0:04:43.2]} 7... Bxf1 {[%clk 0:04:50.3]} 8. Kxf1 {[%clk 0:04:42.1]}
8... d6 {[%clk 0:04:48.4]} 9. g3 {[%clk 0:04:38.8]} 9... Bg7 {[%clk 0:04:46.4]}
10. Nge2 {[%clk 0:04:33.5]} 10... Nbd7 {[%clk 0:04:41.4]} 11. Kg2 {[%clk
0:04:30.1]} 11... O-O {[%clk 0:04:38.8]} 12. f4 {[%clk 0:04:25.6]} 12... Qa5
{[%clk 0:04:35.3]} 13. Bd2 {[%clk 0:04:19.1]} 13... Rfb8 {[%clk 0:04:31.3]} 14.
b3 {[%clk 0:04:14.2]} 14... Ne8 {[%clk 0:04:10.6]} 15. Na4 {[%clk 0:04:06.3]}
15... Qa6 {[%clk 0:03:49.7]} 16. Bc3 {[%clk 0:04:04]} 16... Nc7 {[%clk
0:03:35.3]} 17. Bxg7 {[%clk 0:04:00.9]} 17... Kxg7 {[%clk 0:03:35.2]} 18. Qc2
{[%clk 0:03:58.1]} 18... Nb5 {[%clk 0:03:13.3]} 19. Nb2 {[%clk 0:03:45.1]} 19...
Nb6 {[%clk 0:03:00.8]} 20. Nc4 {[%clk 0:03:40.2]} 20... Nxc4 {[%clk 0:02:54.5]}
21. bxc4 {[%clk 0:03:38.6]} 21... Na3 {[%clk 0:02:44.1]} 22. Qc3+ {[%clk
0:03:33.6]} 22... f6 {[%clk 0:02:41.2]} 23. Rhc1 {[%clk 0:03:30.9]} 23... Rb4
{[%clk 0:02:36.9]} 24. e5 {[%clk 0:03:27.9]} 24... Rxc4 {[%clk 0:02:19.7]} 25.
exf6+ {[%clk 0:03:25.5]} 25... exf6 {[%clk 0:02:18.6]} 26. Qe3 {[%clk
0:03:23.9]} 26... Qb7 {[%clk 0:02:05.7]} 27. Qe6 {[%clk 0:03:02.9]} 27... Rxc1
{[%clk 0:01:38.2]} 28. Rxc1 {[%clk 0:02:59.8]} 28... Nb5 {[%clk 0:01:33.6]} 29.
Rc2 {[%clk 0:02:50]} 29... Nc7 {[%clk 0:01:27.6]} 30. Qxd6 {[%clk 0:02:37]}
30... Qxd5+ {[%clk 0:01:24.1]} 31. Qxd5 {[%clk 0:02:32]} 31... Nxd5 {[%clk
0:01:22.9]} 32. Rxc5 {[%clk 0:02:23.7]} 32... Ne3+ {[%clk 0:01:21.4]} 33. Kf3
{[%clk 0:02:21.4]} 33... Nf5 {[%clk 0:01:20.1]} 34. Rc2 {[%clk 0:02:12.6]} 34...
Ra3+ {[%clk 0:01:15.1]} 35. Kf2 {[%clk 0:02:08]} 35... Ne3 {[%clk 0:01:11.7]}
36. Rd2 {[%clk 0:01:52.9]} 36... Ng4+ {[%clk 0:01:04.2]} 37. Kg2 {[%clk
0:01:49.8]} 37... h5 {[%clk 0:01:00.3]} 38. h3 {[%clk 0:01:47.3]} 38... Ne3+
{[%clk 0:00:59.2]} 39. Kf2 {[%clk 0:01:45.8]} 39... Nc4 {[%clk 0:00:54.7]} 40.
Rc2 {[%clk 0:01:37]} 40... Nd6 {[%clk 0:00:48.5]} 41. Nc3 {[%clk 0:01:33.4]}
41... Rxc3 {[%clk 0:00:45.6]} 42. Rxc3 {[%clk 0:01:29.8]} 42... Ne4+ {[%clk
0:00:45]} 43. Ke3 {[%clk 0:01:27.2]} 43... Nxc3 {[%clk 0:00:44.1]} 44. a3 {[%clk
0:01:26.1]} 44... g5 {[%clk 0:00:39.4]} 45. fxg5 {[%clk 0:01:21.5]} 45... fxg5
{[%clk 0:00:38.5]} 46. Kd3 {[%clk 0:01:21]} 46... Nb5 {[%clk 0:00:35.9]} 47. a4
{[%clk 0:01:19.8]} 47... Na7 {[%clk 0:00:33.6]} 48. Kc4 {[%clk 0:01:17.9]} 48...
Kf6 {[%clk 0:00:32]} 49. Kc5 {[%clk 0:01:16.8]} 49... Nc8 {[%clk 0:00:25.9]} 50.
Kc6 {[%clk 0:01:15]} 50... Ke5 {[%clk 0:00:21.4]} 51. Kc7 {[%clk 0:01:12.3]}
51... Nd6 {[%clk 0:00:20.3]} 52. a5 {[%clk 0:01:07.2]} 52... Kd5 {[%clk
0:00:19.2]} 53. Kb6 {[%clk 0:01:02.9]} 53... Nc4+ {[%clk 0:00:17.7]} 54. Kb5
{[%clk 0:00:58.8]} 54... Nxa5 {[%clk 0:00:17.6]} 55. Kxa5 {[%clk 0:00:57.3]}
55... Ke4 {[%clk 0:00:17.5]} 56. h4 {[%clk 0:00:53.5]} 56... Kf3 {[%clk
0:00:17.4]} 57. hxg5 {[%clk 0:00:52.1]} 57... Kxg3 {[%clk 0:00:15.8]} 58. g6
{[%clk 0:00:51.5]} 58... h4 {[%clk 0:00:15.7]} 59. g7 {[%clk 0:00:50.8]} 59...
h3 {[%clk 0:00:15.6]} 60. g8=Q+ {[%clk 0:00:49.5]} 60... Kh2 {[%clk 0:00:14.5]}
61. Qb8+ {[%clk 0:00:44.9]} 61... Kh1 {[%clk 0:00:13.1]} 62. Qb7+ {[%clk
0:00:42.4]} 62... Kh2 {[%clk 0:00:11.4]} 63. Qc7+ {[%clk 0:00:41.6]} 63... Kg1
{[%clk 0:00:10.5]} 64. Qg3+ {[%clk 0:00:39.6]} 64... Kh1 {[%clk 0:00:08.9]} 65.
Qxh3+ {[%clk 0:00:38.4]} 65... Kg1 {[%clk 0:00:08.8]} 66. Qf3 {[%clk 0:00:32.7]}
66... Kh2 {[%clk 0:00:07.8]} 67. Qg4 {[%clk 0:00:31.5]} 67... Kh1 {[%clk
0:00:06.3]} 68. Kb4 {[%clk 0:00:30.3]} 68... Kh2 {[%clk 0:00:06.2]} 69. Kc3
{[%clk 0:00:29.7]} 69... Kh1 {[%clk 0:00:06.1]} 70. Kd3 {[%clk 0:00:29]} 70...
Kh2 {[%clk 0:00:06]} 71. Ke3 {[%clk 0:00:28.4]} 71... Kh1 {[%clk 0:00:05.9]} 72.
Kf2 {[%clk 0:00:27.8]} 72... Kh2 {[%clk 0:00:05.8]} 73. Qg2# {[%clk 0:00:26.8]}
1-0

[Event "Live Chess"]
[Site "Chess.com"]
[Date "2024.06.02"]
[Round "-"]
[White "Grace6363"]
[Black "Queensandpawns"]
[Result "0-1"]
[WhiteElo "1144"]
[BlackElo "2240"]
[TimeControl "300"]
[EndTime "4:01:03 PDT"]
[Termination "Queensandpawns won by resignation"]

1. d4 {[%clk 0:04:54.3]} 1... e5 {[%clk 0:04:59.9]} 2. dxe5 {[%clk 0:04:53]}
2... Bc5 {[%clk 0:04:59.4]} 3. Nf3 {[%clk 0:04:50.5]} 3... d6 {[%clk 0:04:59.2]}
4. e3 {[%clk 0:04:46.6]} 4... Ne7 {[%clk 0:04:59.1]} 5. Be2 {[%clk 0:04:42.6]}
5... O-O {[%clk 0:04:58.8]} 6. Nc3 {[%clk 0:04:41.4]} 6... Nbc6 {[%clk
0:04:58.2]} 7. a3 {[%clk 0:04:39.6]} 7... dxe5 {[%clk 0:04:55.6]} 8. b4 {[%clk
0:04:36.1]} 8... Bb6 {[%clk 0:04:55.1]} 9. Bb2 {[%clk 0:04:30.4]} 9... Bf5
{[%clk 0:04:52.3]} 10. O-O {[%clk 0:04:18.6]} 10... a6 {[%clk 0:04:48.5]} 11.
Qxd8 {[%clk 0:04:13.5]} 11... Rfxd8 {[%clk 0:04:48.4]} 12. Rad1 {[%clk
0:04:12.8]} 12... h6 {[%clk 0:04:41.3]} 13. e4 {[%clk 0:04:08.7]} 13... Be6
{[%clk 0:04:40.3]} 14. Na4 {[%clk 0:03:59.4]} 14... Ba7 {[%clk 0:04:37.6]} 15.
Bxe5 {[%clk 0:03:55]} 15... Nxe5 {[%clk 0:04:36.2]} 16. Nxe5 {[%clk 0:03:54]}
16... b5 {[%clk 0:04:33.1]} 17. Nc5 {[%clk 0:03:46.6]} 17... Bxc5 {[%clk
0:04:31.8]} 18. bxc5 {[%clk 0:03:45.9]} 18... f6 {[%clk 0:04:31.4]} 19. Nd3
{[%clk 0:03:30.1]} 19... Nc6 {[%clk 0:04:29.7]} 20. Nb4 {[%clk 0:03:23.3]} 20...
Nd4 {[%clk 0:04:27.6]} 21. Bd3 {[%clk 0:03:10.1]} 21... a5 {[%clk 0:04:26.4]}
22. c3 {[%clk 0:03:01.5]} 22... Nb3 {[%clk 0:04:22.5]} 23. Nc2 {[%clk
0:02:57.4]} 23... Nxc5 {[%clk 0:04:21.3]} 24. Bxb5 {[%clk 0:02:50.4]} 24... Nxe4
{[%clk 0:04:20.6]} 25. Bc6 {[%clk 0:02:38.4]} 25... Nxc3 {[%clk 0:04:16.7]} 26.
Bxa8 {[%clk 0:02:32.9]} 26... Rxd1 {[%clk 0:04:04.9]} 27. Rxd1 {[%clk
0:02:31.6]} 27... Nxd1 {[%clk 0:04:04.8]} 28. Bc6 {[%clk 0:02:14.2]} 28... Nc3
{[%clk 0:04:02.7]} 29. Nd4 {[%clk 0:02:09.6]} 29... Bc4 {[%clk 0:04:01.9]} 30.
g3 {[%clk 0:01:50.4]} 30... Kf8 {[%clk 0:04:00.5]} 31. f4 {[%clk 0:01:48.6]}
31... Ke7 {[%clk 0:03:59.1]} 32. Nf5+ {[%clk 0:01:46.9]} 32... Kf7 {[%clk
0:03:53.6]} 33. Nd4 {[%clk 0:01:34.3]} 33... Bd5 {[%clk 0:03:47.9]} 34. Bd7
{[%clk 0:01:15.4]} 34... c5 {[%clk 0:03:46.2]} 35. Nc2 {[%clk 0:01:06.1]} 35...
Bb3 {[%clk 0:03:42.9]} 36. Ne3 {[%clk 0:01:02.6]} 36... c4 {[%clk 0:03:41.1]}
37. Bc6 {[%clk 0:00:53.5]} 37... Ne2+ {[%clk 0:03:39.5]} 38. Kf2 {[%clk
0:00:50.6]} 38... Nd4 {[%clk 0:03:25.6]} 39. Be4 {[%clk 0:00:48.6]} 39... Ke7
{[%clk 0:03:21.9]} 40. Ke1 {[%clk 0:00:44.6]} 40... Kd6 {[%clk 0:03:21.1]} 41.
Kd2 {[%clk 0:00:42.6]} 41... Kc5 {[%clk 0:03:19.8]} 42. Kc3 {[%clk 0:00:41.2]}
42... Ne2+ {[%clk 0:03:18.6]} 43. Kb2 {[%clk 0:00:37.1]} 43... Kd4 {[%clk
0:03:16.3]} 44. Bb1 {[%clk 0:00:35.2]} 44... Kxe3 {[%clk 0:03:15.1]} 45. Bc2
{[%clk 0:00:31.7]} 45... Bxc2 {[%clk 0:03:12.7]} 46. Kxc2 {[%clk 0:00:31.3]}
46... Kd4 {[%clk 0:03:12.6]} 47. a4 {[%clk 0:00:29.9]} 47... Nc3 {[%clk
0:03:11.8]} 48. h3 {[%clk 0:00:28.4]} 48... Nxa4 {[%clk 0:03:11.7]} 49. g4
{[%clk 0:00:25.4]} 49... Nc5 {[%clk 0:03:11.6]} 0-1